Workbook

Sheet стр.1_4
DB1: Приложение
DB2: к Требованиям к составлению и утверждению плана финансово-хозяйственной деятельности государственного (муниципального) учреждения, утвержденным приказом Министерства финансов Российской Федерации от 31 августа 2018 г. № 186н
DB3: (в ред. Приказов Минфина России от 07.02.2020 № 17н, от 02.04.2021 № 53н, от 03.09.2021 № 121н)
DB5: (рекомендуемый образец)
DW7: Утверждаю
DW8: Руководитель Исполнительного комитета "ЕМР"
DW9: (наименование должности уполномоченного лица)
DW10: Исполнительный комитет ЕМР
DW11: (наименование органа-учредителя (учреждения)
EL12: Нургаянов Л.Ф.
DW13: (подпись) | EL13: (расшифровка подписи)
DW14: " | DY14: 24 | EB14: " | EE14: декабрь | ET14: 20 | EW14: 21 | EZ14: г.
AW16: План финансово-хозяйственной деятельности на 20 | CV16: г.
AY17: (на 20 | BF17: 22 | BI17: г. и плановый период 20 | CE17: 23 | CH17: и 20 | CM17: 24 | CP17: годов 1) | ES17: Коды
BG19: от " | BK19: 24 | BN19: " | BQ19: декабря | CF19: 20 | CI19: 21 | CL19: г.2 | EQ19: Дата
A20: Орган, осуществляющий | EQ20: по Сводному реестру
A21: функции и полномочия учредителя | AB21: Исполнительный комитет Елабужского муниципального района | EQ21: глава по БК
EQ22: по Сводному реестру
EQ23: ИНН
A24: Учреждение | K24: МБДОУ "Детский сад общеразвивающего вида №31 "Жемчужинка"ЕМР РТ | EQ24: КПП
A25: Единица измерения: руб. | EQ25: по ОКЕИ | ES25: 383
A27: Раздел 1. Поступления и выплаты
A29: Наименование показателя | BX29: Код строки | CF29: Код по бюджетной классификации Российской Федерации 3 | CS29: Аналитический код 4 | DF29: Сумма
DF30: на 20 | DL30: 22 | DO30: г. | DS30: на 20 | DY30: 23 | EB30: г. | EF30: на 20 | EL30: 24 | EO30: г. | ES30: за пределами планового периода
DF31: текущий финансовый год | DS31: первый год планового периода | EF31: второй год планового периода
A32: 1 | BX32: 2 | CF32: 3 | CS32: 4 | DF32: 5 | DS32: 6 | EF32: 7 | ES32: 8
A33: Остаток средств на начало текущего финансового года 5 | BX33: 0001 | CF33: х | CS33: х | DF33: 287153.39
A34: Остаток средств на конец текущего финансового года 5 | BX34: 0002 | CF34: х | CS34: х
A35: Доходы, всего: | BX35: 1000 | DF35: =DF36+DF39 -> 37,177,195.68 | DS35: =DS36+DS39 -> 37,540,521.64 | EF35: =EF36+EF39 -> 37,918,380.64
A36: в том числе: доходы от собственности, всего | BX36: 1100 | CF36: 120 | DF36: 386,000.00 | DS36: =DF36 -> 386,000.00 | EF36: =DS36 -> 386,000.00
A37: в том числе: | BX37: 1110
A39: доходы от оказания услуг, работ, компенсации затрат учреждений, всего | BX39: 1200 | CF39: 130 | DF39: =SUM(DF40:DR41) -> 36,791,195.68 | DS39: =SUM(DS40:EE41) -> 37,154,521.64 | EF39: =SUM(EF40:ER41) -> 37,532,380.64
A40: в том числе: субсидии на финансовое обеспечение выполнения государственного (муниципального) задания за счет средств бюджета публично-правового образования, создавшего учреждение | BX40: 1210 | CF40: 130 | DF40: =DF62-DF33-DF36 -> 36,791,195.68 | DS40: =DS62-DS33-DS36 -> 37,154,521.64 | EF40: =EF62-EF33-EF36 -> 37,532,380.64
A41: субсидии на финансовое обеспечение выполнения государственного задания за счет средств бюджета Федерального фонда обязательного медицинского страхования | BX41: 1220 | CF41: 130
A43: доходы от штрафов, пеней, иных сумм принудительного изъятия, всего | BX43: 1300 | CF43: 140 | DF43: =SUM(DF44) -> 0.00 | DS43: =SUM(DS44) -> 0.00 | EF43: =SUM(EF44) -> 0.00
A44: в том числе: | BX44: 1310 | CF44: 140
A46: безвозмездные денежные поступления, всего | BX46: 1400 | CF46: 150
A47: в том числе: | BX47: 1410 | CF47: 150
A48: целевые субсидии
A49: субсидии на осуществление капитальных вложений | BX49: 1420 | CF49: 150
A51: прочие доходы, всего | BX51: 1500 | CF51: 180
A52: в том числе:
A55: доходы от операций с активами, всего | BX55: 1900
A56: в том числе:
A59: прочие поступления, всего 6 | BX59: 1980 | CF59: х
A60: из них: увеличение остатков денежных средств за счет возврата дебиторской задолженности прошлых лет | BX60: 1981 | CF60: 510 | ES60: х
A62: Расходы, всего | BX62: 2000 | CF62: х | DF62: =DF63+DF82+DF96+DF33 -> 37,464,349.07 | DS62: =DS63+DS82+DS96 -> 37,540,521.64 | EF62: =EF63+EF82+EF96 -> 37,918,380.64
A63: в том числе: на выплаты персоналу, всего | BX63: 2100 | CF63: х | DF63: =SUM(DF64:DR67,DF70:DR74) -> 24,332,849.59 | DS63: =SUM(DS64:EE67,DS70:EE74) -> 24,332,849.59 | EF63: =SUM(EF64:ER67,EF70:ER74) -> 24,332,849.59 | ES63: х
A64: в том числе: оплата труда | BX64: 2110 | CF64: 111 | DF64: 18,682,373.20 | DS64: =DF64 -> 18,682,373.20 | EF64: =DS64 -> 18,682,373.20 | ES64: х
A65: прочие выплаты персоналу, в том числе компенсационного характера | BX65: 2120 | CF65: 112 | DF65: 8,400.00 | DS65: =DF65 -> 8,400.00 | EF65: =DS65 -> 8,400.00 | ES65: х
A66: иные выплаты, за исключением фонда оплаты труда учреждения, для выполнения отдельных полномочий | BX66: 2130 | CF66: 113 | ES66: х
A67: взносы по обязательному социальному страхованию на выплаты по оплате труда работников и иные выплаты работникам учреждений, всего | BX67: 2140 | CF67: 119 | DF67: =SUM(DF68:DR69) -> 5,642,076.39 | DS67: =SUM(DS68:EE69) -> 5,642,076.39 | EF67: =SUM(EF68:ER69) -> 5,642,076.39 | ES67: х
A68: в том числе: на выплаты по оплате труда | BX68: 2141 | CF68: 119 | DF68: 5,642,076.39 | DS68: =DF68 -> 5,642,076.39 | EF68: =DS68 -> 5,642,076.39 | ES68: х
A69: на иные выплаты работникам | BX69: 2142 | CF69: 119 | ES69: х
A70: денежное довольствие военнослужащих и сотрудников, имеющих специальные звания | BX70: 2150 | CF70: 131 | ES70: х
A71: расходы на выплаты военнослужащим и сотрудникам, имеющим специальные звания, зависящие от размера денежного довольствия | BX71: 2160 | CF71: 133 | ES71: х
A72: иные выплаты военнослужащим и сотрудникам, имеющим специальные звания | BX72: 2170 | CF72: 134 | ES72: х
A73: страховые взносы на обязательное социальное страхование в части выплат персоналу, подлежащих обложению страховыми взносами | BX73: 2180 | CF73: 139 | ES73: х
A74: в том числе: на оплату труда стажеров | BX74: 2181 | CF74: 139 | ES74: х
A75: социальные и иные выплаты населению, всего | BX75: 2200 | CF75: 300 | DF75: =SUM(DF76:DR81) -> 0.00 | DS75: =SUM(DS76:EE81) -> 0.00 | EF75: =SUM(EF76:ER81) -> 0.00 | ES75: х
A76: в том числе: социальные выплаты гражданам, кроме публичных нормативных социальных выплат | BX76: 2210 | CF76: 320 | ES76: х
A77: из них: пособия, компенсации и иные социальные выплаты гражданам, кроме публичных нормативных обязательств | BX77: 2211 | CF77: 321 | ES77: х
A79: выплата стипендий, осуществление иных расходов на социальную поддержку обучающихся за счет средств стипендиального фонда | BX79: 2220 | CF79: 340 | ES79: х
A80: на премирование физических лиц за достижения в области культуры, искусства, образования, науки и техники, а также на предоставление грантов с целью поддержки проектов в области науки, культуры и искусства | BX80: 2230 | CF80: 350 | ES80: х
A81: иные выплаты населению | BX81: 2240 | CF81: 360 | ES81: х
A82: уплата налогов, сборов и иных платежей, всего | BX82: 2300 | CF82: 850 | DF82: =SUM(DF83:DR85) -> 755,392.00 | DS82: =SUM(DS83:EE85) -> 755,392.00 | EF82: =SUM(EF83:ER85) -> 755,392.00 | ES82: х
A83: из них: налог на имущество организаций и земельный налог | BX83: 2310 | CF83: 851 | DF83: 755,392.00 | DS83: =DF83 -> 755,392.00 | EF83: =DS83 -> 755,392.00 | ES83: х
A84: иные налоги (включаемые в состав расходов) в бюджеты бюджетной системы Российской Федерации, а также государственная пошлина | BX84: 2320 | CF84: 852 | ES84: х
A85: уплата штрафов (в том числе административных), пеней, иных платежей | BX85: 2330 | CF85: 853 | ES85: х
A86: безвозмездные перечисления организациям и физическим лицам, всего | BX86: 2400 | CF86: х | DF86: =SUM(DF87:DR93) -> 0.00 | DS86: =SUM(DS87:EE93) -> 0.00 | EF86: =SUM(EF87:ER93) -> 0.00 | ES86: х
A87: из них: гранты, предоставляемые бюджетным учреждениям | BX87: 2410 | CF87: 613
A88: гранты, предоставляемые автономным учреждениям | BX88: 2420 | CF88: 623
A89: гранты, предоставляемые иным некоммерческим организациям (за исключением бюджетных и автономных учреждений) | BX89: 2430 | CF89: 634
A90: гранты, предоставляемые другим организациям и физическим лицам | BX90: 2440 | CF90: 810
A91: взносы в международные организации | BX91: 2450 | CF91: 862
A92: платежи в целях обеспечения реализации соглашений с правительствами иностранных государств и международными организациями | BX92: 2460 | CF92: 863
A94: прочие выплаты (кроме выплат на закупку товаров, работ, услуг) | BX94: 2500 | CF94: х | ES94: х
A95: исполнение судебных актов Российской Федерации и мировых соглашений по возмещению вреда, причиненного в результате деятельности учреждения | BX95: 2520 | CF95: 831 | ES95: х
A96: расходы на закупку товаров, работ, услуг, всего 7 | BX96: 2600 | CF96: х | DF96: =DF99+DF107 -> 12,088,954.09 | DS96: =DS99+DS107 -> 12,452,280.05 | EF96: =EF99+EF107 -> 12,830,139.05
A97: в том числе: закупку научно-исследовательских, опытно-конструкторских и технологических работ | BX97: 2610 | CF97: 241
A98: закупку товаров, работ, услуг в целях капитального ремонта государственного (муниципального) имущества | BX98: 2630 | CF98: 243
A99: прочую закупку товаров, работ и услуг | BX99: 2640 | CF99: 244 | DF99: =DF100+DF101+DF102+DF103+DF104 -> 9,439,554.09 | DS99: =DS100+DS101+DS102+DS103+DS104 -> 9,696,904.05 | EF99: =EF100+EF101+EF102+EF103+EF104 -> 9,964,548.01
A100: питание | BX100: 2640 | CF100: 244 | DF100: 6,109,749.00 | DS100: =DF100*1.04 -> 6,354,138.96 | EF100: =DS100*1.04 -> 6,608,304.52
A101: охрана | BX101: 2640 | CF101: 244 | DF101: 569,400.00 | DS101: =DF101 -> 569,400.00 | EF101: =DS101 -> 569,400.00
A102: комунальные услуги (вода) | BX102: 2640 | CF102: 244 | DF102: 324,000.00 | DS102: =DF102*1.04 -> 336,960.00 | EF102: =DS102*1.04 -> 350,438.40
A103: услуги связи | BX103: 2640 | CF103: 244 | DF103: 8,565.00 | DS103: =DF103 -> 8,565.00 | EF103: =DS103 -> 8,565.00
A104: прочие | BX104: 2640 | CF104: 244 | DF104: =2427840.09 -> 2,427,840.09 | DS104: =DF104 -> 2,427,840.09 | EF104: =DS104 -> 2,427,840.09
BX105: 2640 | CF105: 244
A106: закупку товаров, работ, услуг в целях создания, развития, эксплуатации и вывода из эксплуатации государственных информационных систем | BX106: 2650 | CF106: 246
A107: закупку энергетических ресурсов (кроме воды) | BX107: 2660 | CF107: 247 | DF107: 2,649,400.00 | DS107: =DF107*1.04 -> 2,755,376.00 | EF107: =DS107*1.04 -> 2,865,591.04
A108: капитальные вложения в объекты государственной (муниципальной) собственности, всего | BX108: 2700 | CF108: 400 | DF108: =SUM(DF109:DR110) -> 0.00 | DS108: =SUM(DS109:EE110) -> 0.00 | EF108: =SUM(EF109:ER110) -> 0.00
A109: в том числе: приобретение объектов недвижимого имущества государственными (муниципальными) учреждениями | BX109: 2710 | CF109: 406
A110: строительство (реконструкция) объектов недвижимого имущества государственными (муниципальными) учреждениями | BX110: 2720 | CF110: 407
A111: Выплаты, уменьшающие доход, всего 8 | BX111: 3000 | CF111: 100 | DF111: =SUM(DF112:DR114) -> 0.00 | DS111: =SUM(DS112:EE114) -> 0.00 | EF111: =SUM(EF112:ER114) -> 0.00 | ES111: х
A112: в том числе: налог на прибыль 8 | BX112: 3010 | ES112: х
A113: налог на добавленную стоимость 8 | BX113: 3020 | ES113: х
A114: прочие налоги, уменьшающие доход 8 | BX114: 3030 | ES114: х
A115: Прочие выплаты, всего 9 | BX115: 4000 | CF115: х | ES115: х
A116: из них: возврат в бюджет средств субсидии | BX116: 4010 | CF116: 610 | ES116: х
A119: _____1_В случае утверждения закона (решения) о бюджете на текущий финансовый год и плановый период.
A120: _____2_Указывается дата подписания Плана, а в случае утверждения Плана уполномоченным лицом учреждения - дата утверждения Плана.
A121: _____3_В графе 3 отражаются:
A122: _____по строкам 1100 - 1900 - коды аналитической группы подвида доходов бюджетов классификации доходов бюджетов;
A123: _____по строкам 1980 - 1990 - коды аналитической группы вида источников финансирования дефицитов бюджетов классификации источников финансирования дефицитов бюджетов;
A124: _____по строкам 2000 - 2720 - коды видов расходов бюджетов классификации расходов бюджетов;
A125: _____по строкам 3000 - 3030 - коды аналитической группы подвида доходов бюджетов классификации доходов бюджетов, по которым планируется уплата налогов, уменьшающих доход (в том числе налог на прибыль, налог на добавленную стоимость, единый налог на вмененный доход для отдельных видов деятельности);
A126: _____по строкам 4000 - 4040 - коды аналитической группы вида источников финансирования дефицитов бюджетов классификации источников финансирования дефицитов бюджетов.
A127: _____4_В графе 4 указывается код классификации операций сектора государственного управления в соответствии с Порядком применения классификации операций сектора государственного управления, утвержденным приказом Министерства финансов Российской Федерации от 29 ноября 2017 г. № 209н (зарегистрирован в Министерстве юстиции Российской Федерации 12 февраля 2018 г., регистрационный номер 50003), и (или) коды иных аналитических показателей, в случае, если Порядком органа - учредителя предусмотрена указанная детализация.
A128: _____5_По строкам 0001 и 0002 указываются планируемые суммы остатков средств на начало и на конец планируемого года, если указанные показатели по решению органа, осуществляющего функции и полномочия учредителя, планируются на этапе формирования проекта Плана либо указываются фактические остатки средств при внесении изменений в утвержденный План после завершения отчетного финансового года.
A129: _____6_Показатели прочих поступлений включают в себя в том числе показатели увеличения денежных средств за счет возврата дебиторской задолженности прошлых лет, включая возврат предоставленных займов (микрозаймов), а также за счет возврата средств, размещенных на банковских депозитах. При формировании Плана (проекта Плана) обособленному(ым) подразделению(ям) показатель прочих поступлений включает показатель поступлений в рамках расчетов между головным учреждением и обособленным подразделением.
A130: _____7_Показатели выплат по расходам на закупки товаров, работ, услуг, отраженные по строкам Раздела 1 "Поступления и выплаты" Плана, подлежат детализации в Разделе 2 "Сведения по выплатам на закупку товаров, работ, услуг" Плана.
A131: _____8_Показатель отражается со знаком "минус".
A132: _____9_Показатели прочих выплат включают в себя в том числе показатели уменьшения денежных средств за счет возврата средств субсидий, предоставленных до начала текущего финансового года, предоставления займов (микрозаймов), размещения автономными учреждениями денежных средств на банковских депозитах. При формировании Плана (проекта Плана) обособленному(ым) подразделению(ям) показатель прочих выплат включает показатель поступлений в рамках расчетов между головным учреждением и обособленным подразделением.

Sheet стр.5_7
B1: Раздел 2. Сведения по выплатам на закупки товаров, работ, услуг 10
A3: № п/п | H3: Наименование показателя | CL3: Коды строк | CS3: Год начала закупки | CZ3: Код по бюджетной классификации Российской Федерации 10.1 | DL3: Уникальный код 10.2 | DW3: Сумма
DW4: на 20 | EB4: 22 | EE4: г. | EG4: на 20 | EL4: 23 | EO4: г. | EQ4: на 20 | EV4: 24 | EY4: г. | FA4: за пределами планового периода
DW5: (текущий финансовый год) | EG5: (первый год планового периода) | EQ5: (второй год планового периода)
A6: 1 | H6: 2 | CL6: 3 | CS6: 4 | CZ6: 4.1 | DL6: 4.2 | DW6: 5 | EG6: 6 | EQ6: 7 | FA6: 8
A7: 1 | H7: Выплаты на закупку товаров, работ, услуг, всего 11 | CL7: 26000 | CS7: х | DW7: =DW10+DW17 -> 12,088,954.09 | EG7: =EG10+EG17 -> 12,452,280.05 | EQ7: =EQ10+EQ17 -> 12,830,139.05
A8: 1.1 | H8: в том числе: по контрактам (договорам), заключенным до начала текущего финансового года без применения норм Федерального закона от 5 апреля 2013 г. № 44-ФЗ "О контрактной системе в сфере закупок товаров, работ, услуг для обеспечения государственных и муниципальных нужд" (Собрание законодательства Российской Федерации, 2013, № 14, ст. 1652; 2018, № 32, ст. 5104) (далее - Федеральный закон № 44-ФЗ) и Федерального закона от 18 июля 2011 г. № 223-ФЗ "О закупках товаров, работ, услуг отдельными видами юридических лиц" (Собрание законодательства Российской Федерации, 2011, № 30, ст. 4571; 2018, № 32, ст. 5135) (далее - Федеральный закон № 223-ФЗ)12 | CL8: 26100 | CS8: х
A9: 1.2 | H9: по контрактам (договорам), планируемым к заключению в соответствующем финансовом году без применения норм Федерального закона № 44-ФЗ и Федерального закона № 223-ФЗ 12 | CL9: 26200 | CS9: х
A10: 1.3 | H10: по контрактам (договорам), заключенным до начала текущего финансового года с учетом требований Федерального закона № 44-ФЗ и Федерального закона № 223-ФЗ 13 | CL10: 26300 | CS10: х | DW10: =DW11 -> 8,627,314.00 | EG10: =EG11 -> 0.00 | EQ10: =EQ11 -> 0.00
A11: 1.3.1 | H11: в том числе: в соответствии с Федеральным законом № 44-ФЗ | CL11: 26310 | CS11: х | CZ11: х | DW11: 8,627,314.00
H12: из них 10.1: | CL12: 26310.1
H14: из них 10.2: | CL14: 26310.2
A16: 1.3.2 | H16: в соответствии с Федеральным законом № 223-ФЗ | CL16: 26320 | CS16: х | CZ16: х
A17: 1.4 | H17: по контрактам (договорам), планируемым к заключению в соответствующем финансовом году с учетом требований Федерального закона № 44-ФЗ и Федерального закона № 223-ФЗ 13 | CL17: 26400 | CS17: х | DW17: =DW18 -> 3,461,640.09 | EG17: =EG18 -> 12,452,280.05 | EQ17: =EQ18 -> 12,830,139.05
A18: 1.4.1 | H18: в том числе: за счет субсидий, предоставляемых на финансовое обеспечение выполнения государственного (муниципального) задания | CL18: 26410 | CS18: х | DW18: =DW19 -> 3,461,640.09 | EG18: =EG19 -> 12,452,280.05 | EQ18: 12,830,139.05
A19: 1.4.1.1 | H19: в том числе: в соответствии с Федеральным законом № 44-ФЗ | CL19: 26411 | CS19: х | DW19: =DW47-DW11 -> 3,461,640.09 | EG19: =стр.1_4!DS96 -> 12,452,280.05 | EQ19: =стр.1_4!EF96 -> 12,830,139.05
A20: 1.4.1.2 | H20: в соответствии с Федеральным законом № 223-ФЗ 14 | CL20: 26412 | CS20: х
A21: 1.4.2 | H21: за счет субсидий, предоставляемых в соответствии с абзацем вторым пункта 1 статьи 78.1 Бюджетного кодекса Российской Федерации | CL21: 26420 | CS21: х
A22: 1.4.2.1 | H22: в том числе: в соответствии с Федеральным законом № 44-ФЗ | CL22: 26421 | CS22: х
H23: из них 10.1: | CL23: 26321.1
A25: 1.4.2.2 | H25: в соответствии с Федеральным законом № 223-ФЗ 14 | CL25: 26422 | CS25: х
A26: 1.4.3 | H26: за счет субсидий, предоставляемых на осуществление капитальных вложений 15 | CL26: 26430 | CS26: х
H27: из них 10.1: | CL27: 26430.1
H29: из них 10.2: | CL29: 26430.2
A32: № п/п | H32: Наименование показателя | CL32: Коды строк | CS32: Год начала закупки | CZ32: Код по бюджетной классификации Российской Федерации 10.1 | DL32: Уникальный код 10.2 | DW32: Сумма
DW33: на 20 | EB33: 22 | EE33: г. | EG33: на 20 | EL33: 23 | EO33: г. | EQ33: на 20 | EV33: 24 | EY33: г. | FA33: за пределами планового периода
DW34: (текущий финансовый год) | EG34: (первый год планового периода) | EQ34: (второй год планового периода)
A35: 1 | H35: 2 | CL35: 3 | CS35: 4 | CZ35: 4.1 | DL35: 4.2 | DW35: 5 | EG35: 6 | EQ35: 7 | FA35: 8
A36: 1.4.4 | H36: за счет средств обязательного медицинского страхования | CL36: 26440 | CS36: х
A37: 1.4.4.1 | H37: в том числе: в соответствии с Федеральным законом № 44-ФЗ | CL37: 26441 | CS37: х
A38: 1.4.4.2 | H38: в соответствии с Федеральным законом № 223-ФЗ 14 | CL38: 26442 | CS38: х
A39: 1.4.5 | H39: за счет прочих источников финансового обеспечения | CL39: 26450 | CS39: х
A40: 1.4.5.1 | H40: в том числе: в соответствии с Федеральным законом № 44-ФЗ | CL40: 26451 | CS40: х
H41: из них 10.1: | CL41: 26451.1
H43: из них 10.2: | CL43: 26451.2
A45: 1.4.5.2 | H45: в соответствии с Федеральным законом № 223-ФЗ | CL45: 26452 | CS45: х
A46: 2 | H46: Итого по контрактам, планируемым к заключению в соответствующем финансовом году в соответствии с Федеральным законом № 44-ФЗ, по соответствующему году закупки 16 | CL46: 26500 | CS46: х
H47: в том числе по году начала закупки: | CL47: 26510 | DW47: =стр.1_4!DF96 -> 12,088,954.09 | EG47: =стр.1_4!DS107+стр.1_4!DS103+стр.1_4!DS102+стр.1_4!DS101+стр.1_4!DS100 -> 10,024,439.96
H48: 2022
H49: в том числе по году начала закупки: | CL49: 26511 | EG49: =стр.1_4!DS96-стр.5_7!EG47 -> 2,427,840.09
H50: 2023
H51: в том числе по году начала закупки: | CL51: 26512 | EQ51: =стр.1_4!EF96 -> 12,830,139.05
H52: 2024
A53: 3 | H53: Итого по договорам, планируемым к заключению в соответствующем финансовом году в соответствии с Федеральным законом № 223-ФЗ, по соответствующему году закупки | CL53: 26600 | CS53: х
H54: в том числе по году начала закупки: | CL54: 26610
I57: Руководитель учреждения
I58: (уполномоченное лицо учреждения) | AQ58: Заведующий ДОУ | BY58: Исламова А.Г.
AQ59: (должность) | BK59: (подпись) | BY59: (расшифровка подписи)
I60: Исполнитель | AM60: Экономист | BG60: Зиннатуллина З.Н. | CA60: 8(5557)48663
AM61: (должность) | BG61: (фамилия, инициалы) | CA61: (телефон)
I62: " | K62: 24 | N62: " | Q62: декабрь | AF62: 20 | AI62: 21 | AL62: г.
A65: СОГЛАСОВАНО
A66: Председатель Финансово-Бюджетной палаты ЕМР
A67: (наименование должности уполномоченного лица органа-учредителя)
AH69: Садыкова Э.И.
A70: (подпись) | AH70: (расшифровка подписи)
A72: " | C72: 24 | F72: " | I72: декабрь | X72: 20 | AA72: 21 | AD72: г.
A75: _____10_В Разделе 2 "Сведения по выплатам на закупку товаров, работ, услуг" Плана детализируются показатели выплат по расходам на закупку товаров, работ, услуг, отраженные по соответствующим строкам Раздела 1 "Поступления и выплаты" Плана.
A76: _____10.1_В случаях, если учреждению предоставляются субсидия на иные цели, субсидия на осуществление капитальных вложений или грант в форме субсидии в соответствии с абзацем первым пункта 4 статьи 78.1 Бюджетного кодекса Российской Федерации в целях достижения результатов федерального проекта, в том числе входящего в состав соответствующего национального проекта (программы), определенного Указом Президента Российской Федерации от 7 мая 2018 г. № 204 "О национальных целях и стратегических задачах развития Российской Федерации на период до 2024 года" (Собрание законодательства Российской Федерации, 2018, № 20, ст. 2817; № 30, ст. 4717), или регионального проекта, обеспечивающего достижение целей, показателей и результатов федерального проекта (далее - региональный проект), показатели строк 26310, 26421, 26430 и 26451 Раздела 2 "Сведения по выплатам на закупку товаров, работ, услуг" детализируются по коду целевой статьи (8 - 17 разряды кода классификации расходов бюджетов, при этом в рамках реализации регионального проекта в 8 - 10 разрядах могут указываться нули).
A77: _____10.2_Указывается уникальный код объекта капитального строительства или объекта недвижимого имущества, присвоенный государственной интегрированной информационной системой управления общественными финансами "Электронный бюджет", в случае если источником финансового обеспечения расходов на осуществление капитальных вложений являются средства федерального бюджета, в том числе предоставленные в виде межбюджетного трансферта в целях софинансирования расходных обязательств субъекта Российской Федерации (муниципального образования).
A78: _____11_Плановые показатели выплат на закупку товаров, работ, услуг по строке 26000 Раздела 2 "Сведения по выплатам на закупку товаров, работ, услуг" Плана распределяются на выплаты по контрактам (договорам), заключенным (планируемым к заключению) в соответствии с гражданским законодательством (строки 26100 и 26200), а также по контрактам (договорам), заключаемым в соответствии с требованиями законодательства Российской Федерации и иных нормативных правовых актов о контрактной системе в сфере закупок товаров, работ, услуг для обеспечения государственных и муниципальных нужд с детализацией указанных выплат по контрактам (договорам), заключенным до начала текущего финансового года (строка 26300) и планируемым к заключению в соответствующем финансовом году (строка 26400).
A79: _____12_Указывается сумма договоров (контрактов) о закупках товаров, работ, услуг, заключенных без учета требований Федерального закона № 44-ФЗ и Федерального закона № 223-ФЗ, в случаях, предусмотренных указанными федеральными законами.
A80: _____13_Указывается сумма закупок товаров, работ, услуг, осуществляемых в соответствии с Федеральным законом № 44-ФЗ и Федеральным законом № 223-ФЗ.
A81: _____14_Государственным (муниципальным) бюджетным учреждением показатель не формируется.
A82: _____15_Указывается сумма закупок товаров, работ, услуг, осуществляемых в соответствии с Федеральным законом № 44-ФЗ.
A83: _____16_Плановые показатели выплат на закупку товаров, работ, услуг по строке 26500 государственного (муниципального) бюджетного учреждения должен быть не менее суммы показателей строк 26410, 26420, 26430, 26440 по соответствующей графе, государственного (муниципального) автономного учреждения - не менее показателя строки 26430 по соответствующей графе.
